bitfinex/quotes_ETHUSD_20250804
["timestamp","ask_amount","ask_price","bid_price","bid_amount"]
[1754303084022,0.11099443,3571.1,3571.0,2.80033604]
[1754303084321,4.39899443,3571.1,3571.0,2.80033604]
[1754303084523,0.11099443,3571.1,3571.0,2.80033604]
[1754303085123,1.05969443,3571.1,3571.0,0.21420904]
[1754303085428,1.05969443,3571.1,3571.0,2.80033604]
[1754303085800,4.39999443,3571.1,3571.0,2.80033604]
[1754303086001,0.11099443,3571.1,3571.0,6.65304543]
[1754303086201,0.71746779,3571.4,3571.3,2.8001008]
[1754303086525,0.71746779,3571.4,3571.3,17.43427858]
[1754303087027,0.71746779,3571.4,3571.3,17.91237858]
[1754303087201,0.71746779,3571.4,3571.3,5.8001008]
[1754303087400,0.71746779,3571.4,3571.3,17.91237858]
[1754303087605,1e-08,3572.1,3572.0,6.34955207]
[1754303087823,0.4843,3573.6,3572.8,2.79890904]
[1754303088027,0.03496699,3574.8,3573.7,14.43239083]
[1754303088028,0.4843,3574.1,3573.7,14.43239083]
[1754303088226,0.4843,3574.1,3573.0,5.79872116]
[1754303088227,0.4843,3574.5,3574.0,11.63417778]
[1754303088396,0.4644,3574.4,3573.7,11.63417778]
[1754303088592,0.4843,3574.3,3573.7,3.0]
[1754303088836,1.01547,3574.3,3573.5,2.79837694]
[1754303089127,0.9487,3574.2,3573.6,3.0]
[1754303089291,0.9487,3574.1,3573.1,3.0]
[1754303089491,5.3147,3574.0,3573.3,3.0]
[1754303089692,5.3157,3573.9,3573.1,0.2125912]
[1754303089898,0.9487,3573.8,3573.1,0.840983]
[1754303090095,0.9487,3573.7,3573.1,0.2065814]
[1754303090299,0.9487,3573.7,3573.4,3.0]
[1754303090501,0.9487,3573.7,3573.3,3.0]
[1754303090729,0.4644,3574.0,3573.2,5.79853998]
[1754303091033,4.8513,3573.9,3573.3,3.0]
[1754303091215,4.8513,3573.9,3573.1,1.0520074]
[1754303091216,0.4843,3573.8,3573.1,1.0520074]
[1754303091417,0.4843,3573.8,3573.4,2.79839862]
[1754303091619,0.4843,3573.8,3573.5,2.79835872]
[1754303091920,0.4843,3574.2,3573.3,0.4781]
[1754303092130,0.9487,3574.6,3573.5,17.22169896]
[1754303092303,5.3147,3574.6,3574.3,2.7976762]
[1754303092495,0.9487,3574.5,3573.6,3.9206]
[1754303092718,0.9487,3574.5,3574.4,0.14]
[1754303093154,5.3167,3574.5,3574.4,0.14]
[1754303093436,5.4567,3574.5,3573.9,3.0]
[1754303093654,0.14,3574.3,3573.9,2.79806013]
[1754303093844,0.14,3574.3,3573.8,0.14]
[1754303094044,0.54567,3574.4,3573.9,3.0]
[1754303094203,0.9487,3574.3,3574.0,0.14]
[1754303094404,0.4843,3574.2,3574.0,0.14]
[1754303094801,0.9487,3574.5,3574.1,2.79783223]
[1754303095012,4.367,3574.3,3574.1,2.79783223]
[1754303095340,4.367,3574.3,3574.0,2.79796854]
[1754303095542,4.8513,3574.3,3574.2,0.14]
[1754303095732,4.367,3574.3,3574.2,0.14]
[1754303096461,0.11099443,3574.9,3573.5,3.0]
[1754303096462,0.11099443,3574.9,3573.8,4.368]
[1754303096615,0.11099443,3574.9,3574.8,5.79735929]
[1754303096815,0.11099443,3574.9,3574.8,6.27545929]
[1754303097050,0.11099443,3574.9,3574.8,6.71105929]
[1754303097943,4.376,3575.7,3575.6,5.79668304]
[1754303098124,4.376,3575.7,3575.6,3.0]
[1754303098125,0.4856,3575.7,3575.6,3.0]
[1754303098340,0.4856,3575.7,3575.6,2.79673341]
[1754303098527,5.214079,3575.9,3575.3,5.79695284]
[1754303098723,5.7860469,3575.9,3575.4,0.840453]
[1754303098927,5.3374469,3575.9,3575.2,0.4966]
[1754303099131,5.3374469,3575.9,3575.5,2.79678073]
[1754303099628,0.389479,3575.9,3575.8,3.0]
[1754303099815,0.389479,3575.9,3575.8,2.79657698]
[1754303100316,0.389479,3575.9,3575.8,3.0]
[1754303100628,0.389479,3575.9,3575.8,7.27877698]
[1754303100829,0.96913571,3578.0,3576.2,2.79624486]
[1754303101015,0.9342,3578.0,3577.1,3.0]
[1754303101234,0.11099443,3578.7,3577.8,2.79500342]
[1754303101235,0.4856,3578.4,3577.8,2.79500342]
[1754303101419,5.3222,3578.4,3577.6,2.79515443]
[1754303101615,0.53222,3578.3,3577.3,3.0]
[1754303101812,0.53222,3578.3,3577.7,2.79507523]
[1754303102023,0.53222,3578.3,3577.2,4.8846]
[1754303102024,0.9342,3578.4,3577.8,2.79501241]
[1754303102254,0.11099443,3578.7,3578.0,2.79480077]
[1754303102439,0.4856,3578.5,3577.7,3.21034516]
[1754303102641,0.11099443,3578.7,3578.2,2.79464835]
[1754303102828,0.11099443,3578.7,3578.6,2.79438886]
[1754303103032,0.11099443,3578.7,3578.6,5.79438886]
[1754303103258,0.11099443,3578.7,3578.6,21.80717643]
[1754303103456,0.11099443,3578.7,3578.6,6.72658886]
[1754303103814,0.11099443,3578.7,3578.6,3.9322]
[1754303104020,0.11099443,3578.7,3578.6,6.29098886]
[1754303104246,0.11099443,3578.7,3577.9,0.55]
[1754303104247,1.04519443,3578.7,3577.5,0.4356]
[1754303104443,0.96912986,3578.6,3577.2,4.393]
[1754303104651,0.9342,3578.6,3577.2,2.79543549]
[1754303104851,0.9342,3578.5,3577.2,2.79543549]
[1754303105159,0.9342,3578.4,3577.2,0.207583]
[1754303105457,0.9342,3578.3,3577.3,2.79540435]
[1754303105623,4.393,3578.2,3577.5,3.0]
[1754303105817,0.53272,3578.1,3577.5,3.0]
[1754303106041,0.53272,3578.1,3577.3,2.79538394]
[1754303106348,0.9342,3578.0,3577.2,0.21301324]
[1754303106525,0.53272,3578.1,3577.2,0.21301324]
[1754303106526,0.9342,3577.9,3577.2,0.21301324]
[1754303106726,0.14,3577.7,3577.2,0.14]
[1754303107052,0.146692,3577.8,3577.2,0.20936708]
[1754303107253,4.395,3578.4,3577.6,0.14]
[1754303107460,0.11099443,3578.7,3578.6,2.79438886]
[1754303107657,0.11099443,3578.7,3578.6,5.79438886]
[1754303108664,0.11099443,3578.7,3578.6,3.0]
[1754303108965,1.04519443,3578.7,3578.1,3.0]
[1754303109140,5.44419443,3578.7,3577.9,3.0]
[1754303109342,0.54441944,3578.6,3577.9,3.0]
[1754303109538,0.54441944,3578.6,3578.1,3.0]
[1754303110060,0.9342,3578.5,3578.1,0.20839113]
[1754303110259,0.4486,3578.5,3578.1,3.0]
[1754303110466,4.94830139,3578.5,3578.1,0.212462]
[1754303110665,4.94830139,3578.5,3577.8,0.4966]
[1754303110967,0.55030139,3578.5,3577.8,0.4966]
[1754303111164,0.11099443,3578.7,3578.6,2.79438886]
[1754303111327,0.11099443,3578.7,3578.4,2.79454119]
[1754303111531,0.11099443,3578.7,3578.6,5.79438886]
[1754303112260,0.11099443,3578.7,3578.6,3.0]
[1754303112426,0.11099443,3578.7,3578.6,5.79438886]
[1754303112932,0.11099443,3578.7,3578.6,3.0]
[1754303113266,0.55959443,3578.7,3578.6,3.0]
[1754303113466,0.11099443,3578.7,3578.6,2.79438886]
[1754303113671,0.11099443,3578.7,3578.5,2.79444107]
[1754303114031,0.11099443,3578.7,3578.4,2.79448644]
[1754303114232,0.11099443,3578.7,3578.0,3.0]
[1754303114458,0.11099443,3578.7,3578.2,2.79465295]
[1754303114662,0.61025387,3578.7,3578.2,2.79465295]
[1754303114871,0.11099443,3578.7,3578.6,5.79438886]
[1754303115054,0.11099443,3578.7,3578.6,6.29098886]
[1754303115255,0.11099443,3578.7,3577.8,0.21321431]
[1754303115568,1.04519443,3578.7,3578.0,3.0]
[1754303115767,0.11099443,3578.7,3577.9,3.0]
[1754303115968,0.9342,3578.6,3577.9,2.79492713]
[1754303116133,0.11099443,3578.7,3578.0,3.0]
[1754303116335,0.11099443,3578.7,3578.4,2.79450193]
[1754303116531,0.11099443,3578.7,3578.1,0.4966]
[1754303116764,0.11099443,3578.7,3578.3,2.79457357]
[1754303116965,0.9342,3578.6,3577.8,0.20930513]
[1754303117131,0.9342,3578.5,3577.8,0.20930513]
[1754303117337,0.9342,3578.4,3577.8,0.20930513]
[1754303117567,0.14,3578.2,3577.8,0.20930513]
[1754303117868,5.37813474,3578.1,3577.8,0.20930513]
[1754303118032,0.55181347,3578.0,3577.8,0.20930513]
[1754303118370,0.9342,3577.9,3577.0,2.79563442]
[1754303118574,0.9342,3577.8,3576.0,0.4356]
[1754303118776,0.9342,3577.7,3576.8,3.0]
[1754303119007,0.9342,3577.7,3577.0,2.79561213]
[1754303119162,4.409,3577.6,3577.1,2.79555851]
[1754303119363,1.46852,3577.5,3576.5,3.4966]
[1754303119563,0.98292,3577.5,3576.5,0.4966]
[1754303119863,0.98292,3577.5,3575.3,14.4743128]
[1754303119864,0.9342,3577.4,3576.8,2.79576217]
[1754303120078,0.9342,3577.4,3576.8,3.00857428]
[1754303120300,0.9342,3577.4,3576.8,0.21281211]
[1754303120499,1.521952,3577.3,3576.0,0.4966]
[1754303120703,0.9342,3577.2,3576.1,2.79629252]
[1754303120907,0.587752,3577.3,3575.9,0.21019907]
[1754303120908,0.9691445,3577.1,3575.9,0.21019907]
[1754303121068,0.9342,3577.0,3575.9,0.21019907]
[1754303121269,0.9342,3576.9,3575.9,7.0]
[1754303121570,5.3452,3576.8,3576.0,2.79641505]
[1754303121769,0.53452,3576.7,3576.0,2.79641505]
[1754303121970,1.02012,3576.7,3575.9,7.21483336]
[1754303122305,0.9342,3576.6,3575.9,7.21483336]
[1754303122468,2.79610781,3576.4,3575.9,7.0]
[1754303122670,2.79642058,3576.0,3575.9,7.0]
[1754303122871,8.14462058,3576.0,3575.9,6.525]
[1754303123202,8.14462058,3576.0,3575.9,6.061]
[1754303123901,8.14462058,3576.0,3575.9,7.0]
[1754303124204,2.79649878,3575.9,3575.8,0.002]
[1754303124405,3.92556695,3575.9,3575.8,0.002]
[1754303124607,1.96326817,3575.9,3575.8,0.002]
[1754303124821,4.9016,3575.9,3575.8,0.002]
[1754303125023,8.04669878,3575.9,3575.8,0.002]
[1754303126216,5.2502,3575.9,3575.8,0.002]
[1754303126438,8.08065501,3575.9,3575.8,0.002]
[1754303126638,8.04569878,3575.9,3575.8,0.002]
[1754303126821,9.12990294,3575.9,3575.8,0.002]
[1754303127217,9.67990294,3575.9,3575.8,0.002]
[1754303127541,42.67990294,3575.9,3575.8,0.002]
[1754303127756,42.67990294,3575.9,3575.4,0.002]
[1754303127757,33.34681163,3575.5,3575.4,0.002]
[1754303127906,40.06581163,3575.5,3575.4,0.002]
[1754303128109,43.7440587,3575.5,3575.4,0.002]
[1754303128359,17.7490587,3575.5,3575.4,0.002]
[1754303128652,14.60264707,3575.5,3575.4,0.002]
[1754303128961,11.7344,3575.5,3575.4,0.002]
[1754303129311,7.3204,3575.5,3575.4,0.002]
[1754303129511,11.7374,3575.5,3575.4,0.002]
[1754303129712,7.3204,3575.5,3575.4,0.002]
[1754303129912,11.7364,3575.5,3575.4,0.002]
[1754303130122,12.91004,3575.5,3575.4,0.002]
[1754303130528,8.03264,3575.5,3575.4,0.002]
[1754303130819,12.44664,3575.5,3575.4,0.002]
[1754303131674,12.90804,3575.5,3575.4,0.002]
[1754303131963,16.60345163,3575.5,3575.4,0.002]
[1754303132859,12.90704,3575.5,3575.4,0.002]
[1754303133235,8.49404,3575.5,3575.4,0.002]
[1754303133441,12.90804,3575.5,3575.4,0.002]
[1754303135970,12.44664,3575.5,3575.4,0.002]
[1754303136583,12.44564,3575.5,3575.4,0.002]
[1754303137398,12.90704,3575.5,3575.4,0.002]
[1754303137898,12.44564,3575.5,3575.4,0.002]
[1754303138499,12.90704,3575.5,3575.4,0.002]
[1754303139812,15.70385163,3575.5,3575.4,0.002]
[1754303140171,12.90704,3575.5,3575.4,0.002]
[1754303141014,15.70385163,3575.5,3575.4,0.002]
[1754303144299,0.55,3574.9,3572.6,0.4526]
[1754303144500,5.44636699,3574.8,3573.0,0.4526]
[1754303144684,2.7981077,3573.9,3573.1,0.438]
[1754303144884,2.79835542,3573.6,3573.1,0.438]
[1754303145121,2.79851352,3573.4,3572.8,0.438]
[1754303145426,4.421,3573.3,3572.8,0.438]
[1754303145610,4.421,3573.3,3572.9,0.8906]
[1754303145815,4.421,3573.3,3572.9,0.4526]
[1754303145999,4.421,3573.3,3572.6,0.438]
[1754303146199,4.421,3573.3,3572.7,0.8906]
[1754303147197,4.421,3573.3,3572.8,0.8906]
[1754303147525,4.421,3573.3,3572.9,0.438]
[1754303147692,0.4421,3573.2,3572.6,0.438]
[1754303148143,0.4421,3573.2,3572.0,0.21471555]
[1754303148301,0.9035,3573.2,3572.3,0.438]
[1754303148886,0.9035,3573.2,3572.4,0.4526]
[1754303149113,0.81230412,3573.1,3572.4,0.4526]
[1754303149450,4.416,3573.0,3572.4,0.4526]
[1754303149612,4.4509846,3573.0,3572.4,0.4526]
[1754303149814,7.71116139,3573.0,3572.3,0.438]
[1754303150043,3.97529746,3572.9,3572.3,0.438]
[1754303150241,1.17641826,3572.9,3572.3,0.438]
[1754303150757,1.17641826,3572.9,3571.8,0.438]
[1754303150758,0.49638656,3572.8,3571.8,0.438]
[1754303151052,4.413,3572.7,3571.9,0.4526]
[1754303152256,4.413,3572.7,3570.5,6.64204415]
[1754303152420,4.413,3572.7,3572.0,0.8906]
[1754303152619,4.413,3572.7,3571.1,3.0]
[1754303152620,2.79916025,3572.5,3571.5,3.0]
[1754303152812,0.03499048,3572.4,3571.6,0.438]
[1754303153134,4.422,3572.3,3571.7,0.4526]
[1754303153515,4.423,3572.2,3571.8,0.438]
[1754303153752,4.425,3572.1,3571.9,0.8906]
[1754303153953,4.424,3572.0,3571.9,0.8906]
[1754303154152,4.424,3572.0,3571.1,3.0]
[1754303154316,0.14,3571.6,3571.1,5.94025104]
[1754303154516,4.43,3571.5,3571.2,3.69077099]
[1754303154865,0.14,3571.6,3571.3,0.8906]
[1754303155151,4.43,3571.4,3571.3,2.8001008]
[1754303155314,4.43,3571.4,3571.3,2.9401008]
[1754303155512,4.43,3571.4,3571.3,5.9401008]
[1754303155717,4.43,3571.4,3571.3,6.8307008]
[1754303156589,0.4614,3572.6,3571.3,1.99389524]
[1754303156743,0.14,3572.2,3571.5,5.79994321]
[1754303156942,0.14,3572.2,3571.7,0.14]
[1754303157141,0.14,3572.2,3571.8,0.9204]
[1754303157388,0.14,3572.2,3571.9,0.9204]
[1754303157583,0.14,3572.2,3571.7,2.93978094]
[1754303157803,4.425,3572.1,3572.0,0.9204]
[1754303159075,4.425,3572.1,3572.0,0.4425]
[1754303159978,4.425,3572.1,3572.0,0.9204]
[1754303160338,4.421,3572.1,3572.0,0.9204]
[1754303161242,0.14,3572.4,3572.0,3.71994207]
[1754303161451,4.419,3572.3,3572.1,0.9204]
[1754303161651,0.14,3572.5,3571.9,2.93959853]
[1754303161652,4.419,3572.2,3571.9,2.93959853]
[1754303161946,0.14,3572.5,3572.0,2.79953893]
[1754303162150,4.419,3572.1,3572.0,2.79953893]
[1754303162384,0.14,3572.5,3572.1,2.79945849]
[1754303162578,4.418,3572.4,3572.1,0.9204]
[1754303162871,4.418,3572.4,3572.2,0.9204]
[1754303163072,4.418,3572.4,3572.2,0.4779]
[1754303163279,4.418,3572.4,3572.3,0.4425]
[1754303163686,4.418,3572.4,3572.3,0.9204]
[1754303163845,0.14,3572.5,3572.4,5.7992386]
[1754303164050,4.415,3572.5,3572.4,6.7196386]
[1754303164258,4.415,3572.5,3572.4,6.71960841]
[1754303166294,4.415,3572.5,3572.4,3.9204]
[1754303166796,4.415,3572.5,3572.4,6.7196386]
[1754303167375,0.4954,3573.9,3572.9,3.0]
[1754303167574,0.14,3573.6,3573.0,3.71912134]
[1754303167921,0.14,3573.6,3573.1,2.93867903]
[1754303168269,0.4954,3573.5,3573.1,2.93867903]
[1754303168812,4.419,3573.4,3573.3,2.79853356]
[1754303169006,0.14,3573.6,3573.4,2.79841668]
[1754303169170,4.418,3573.5,3573.4,2.79841668]
[1754303169503,4.418,3573.5,3573.4,0.4425]
[1754303169866,0.4954,3573.9,3573.4,3.24095525]
[1754303170069,0.14,3573.7,3573.5,3.24082422]
[1754303170375,4.416,3573.6,3573.5,0.4425]
[1754303170807,4.416,3573.6,3573.5,3.24087694]
[1754303171005,4.416,3573.6,3573.5,0.4425]
[1754303171309,4.416,3573.6,3573.5,3.24087694]
[1754303171814,4.416,3573.6,3573.5,3.71877694]
[1754303173173,6.723,3573.8,3573.6,2.79824108]
[1754303173432,6.723,3573.8,3573.7,3.71862033]
[1754303173600,11.134,3573.8,3573.7,3.71862033]
[1754303173907,12.60852412,3573.8,3573.4,0.840891]
[1754303174207,0.5854,3573.7,3573.3,2.79852448]
[1754303174501,0.09,3573.7,3573.4,0.4425]
[1754303174705,0.09,3573.7,3573.4,3.24093731]
[1754303174906,11.134,3573.8,3573.5,0.4425]
[1754303175608,11.6294,3573.8,3573.3,2.79853004]
[1754303175804,11.134,3573.8,3573.2,2.79859531]
[1754303175973,0.4954,3573.7,3573.1,3.4425]
[1754303176174,0.4954,3573.7,3573.1,3.24116351]
[1754303176373,0.4954,3573.7,3573.3,3.0]
[1754303176572,0.4954,3573.7,3573.2,2.79860598]
[1754303176573,0.4954,3573.7,3573.2,3.0]
[1754303176811,11.134,3573.8,3573.2,3.0]
[1754303177018,0.4954,3573.6,3573.2,2.79859811]
[1754303177175,4.413,3573.5,3573.2,3.24109811]
[1754303177514,4.413,3573.5,3573.2,3.4425]
[1754303178104,4.413,3573.5,3573.2,3.2411088]
[1754303178305,4.413,3573.5,3573.3,3.24100212]
[1754303178604,4.413,3573.5,3573.3,3.27640212]
[1754303178782,4.413,3573.5,3573.4,3.24095525]
[1754303178987,4.413,3573.5,3573.4,6.71885525]
[1754303180011,4.413,3573.5,3573.2,3.24107913]
[1754303180212,4.413,3573.5,3573.3,3.0]
[1754303180395,4.9084,3573.5,3573.2,3.0]
[1754303180728,0.4954,3573.4,3572.5,0.4425]
[1754303180889,0.844,3573.4,3572.4,0.20924835]
[1754303181215,3.67754073,3573.3,3572.4,0.20924835]
[1754303181416,7.2076197,3573.2,3572.4,0.20924835]
[1754303181726,1.12349121,3573.1,3572.4,0.20924835]
[1754303181926,0.844,3573.0,3571.8,3.64096167]
[1754303182076,4.408,3572.9,3571.7,3.9204]
[1754303182280,0.4954,3572.8,3571.8,2.79970883]
[1754303182522,0.5252,3572.7,3571.8,2.79970883]
[1754303182691,5.252,3572.6,3571.7,0.84132]
[1754303182918,5.252,3572.6,3572.0,0.002]
[1754303182919,0.4954,3572.5,3572.0,0.002]
[1754303183230,0.8789895,3572.5,3572.0,0.002]
[1754303183388,0.86112812,3572.4,3572.0,0.002]
[1754303183589,4.45199146,3572.3,3572.0,0.002]
[1754303183829,5.29599146,3572.3,3572.0,0.002]
[1754303184142,0.4954,3572.2,3572.0,0.002]
[1754303184631,4.417,3572.3,3572.0,0.002]
[1754303184817,0.14,3572.3,3572.0,0.002]
[1754303185020,0.53038558,3572.9,3572.1,0.9204]
[1754303185021,4.415,3572.2,3572.1,0.9204]
[1754303185218,4.415,3572.2,3572.1,3.71987369]
[1754303185405,4.415,3572.2,3572.1,0.4425]
[1754303186496,4.415,3572.2,3572.0,0.002]
[1754303186798,0.4954,3572.1,3572.0,0.002]
[1754303186996,0.984,3572.1,3572.0,0.002]
[1754303187743,0.6354,3572.1,3572.0,0.002]
[1754303187898,0.984,3572.1,3572.0,0.002]
[1754303188097,1.534,3572.1,3572.0,0.002]
[1754303188292,5.01772026,3572.1,3572.0,0.002]
[1754303188523,11.74372026,3572.1,3572.0,0.002]
[1754303188731,11.70872684,3572.1,3572.0,0.002]
[1754303192311,14.70872684,3572.1,3572.0,0.002]
[1754303192712,28.92789034,3572.1,3572.0,0.002]
[1754303193256,11.90925315,3572.1,3572.0,0.002]
[1754303193415,19.12172684,3572.1,3572.0,0.002]
[1754303193948,33.34089034,3572.1,3572.0,0.002]
[1754303194209,33.34089034,3572.1,3571.6,0.002]
[1754303194210,3.34978721,3571.7,3571.6,0.002]
[1754303194354,11.43376327,3571.7,3571.6,0.002]
[1754303194662,12.36656593,3571.7,3571.6,0.002]
[1754303195361,42.36656593,3571.7,3571.6,0.002]
[1754303198884,37.95256593,3571.7,3571.6,0.002]
[1754303199056,41.87296593,3571.7,3571.6,0.002]
[1754303199862,11.87296593,3571.7,3571.6,0.002]
[1754303200191,5.04497872,3571.7,3571.6,0.002]
[1754303200369,12.25756327,3571.7,3571.6,0.002]
[1754303200678,12.22256593,3571.7,3571.6,0.002]
[1754303202774,13.90756593,3571.7,3571.6,0.002]
[1754303203689,8.66976593,3571.7,3571.6,0.002]
[1754303203861,13.55796593,3571.7,3571.6,0.002]
[1754303204385,43.90656593,3571.7,3571.6,0.002]
[1754303204749,2.80025762,3571.1,3571.0,0.002]
[1754303204945,13.03730372,3571.1,3571.0,0.002]
[1754303205141,13.4815005,3571.1,3571.0,0.002]
[1754303206353,13.8301005,3571.1,3571.0,0.002]
[1754303207487,46.7861005,3571.1,3571.0,0.002]
[1754303208648,46.7861005,3571.1,3569.5,0.9292]
[1754303208855,0.55,3569.9,3569.5,0.9292]
[1754303209069,0.14,3569.6,3568.8,2.80205483]
[1754303209252,0.14,3569.0,3568.9,3.0]
[1754303209453,4.543,3569.0,3568.9,2.8019838]
[1754303209777,4.543,3569.0,3568.9,3.7311838]
[1754303210172,4.543,3569.0,3568.9,3.9292]
[1754303210377,4.543,3569.0,3568.9,0.9292]
[1754303211261,4.543,3569.0,3568.9,6.7311838]
[1754303211466,4.403,3569.0,3568.9,6.7311838]
[1754303213701,4.403,3569.0,3568.9,3.9292]
[1754303213996,4.403,3569.0,3568.9,6.7311838]
[1754303216072,0.14,3569.1,3569.0,5.80190529]
[1754303216272,4.537,3569.1,3569.0,5.80190529]
[1754303216473,4.537,3569.1,3569.0,6.73110529]
[1754303216883,6.731,3569.9,3569.2,2.80173093]
[1754303217079,4.393,3569.8,3569.3,0.9451]
[1754303217391,7.4591,3569.9,3569.3,0.9451]
[1754303217570,6.731,3569.9,3569.8,2.80127738]
[1754303217905,11.264,3569.9,3569.8,3.74637738]
[1754303218868,11.264,3569.9,3569.8,0.9451]
[1754303221325,11.264,3569.9,3569.8,0.4672]
[1754303221487,11.264,3569.9,3569.7,2.801352]
[1754303221691,0.03501596,3569.8,3568.9,0.841929]
[1754303221907,0.14,3569.6,3569.2,3.4672]
[1754303222106,0.14,3569.4,3569.3,0.9451]
[1754303223029,0.14,3569.4,3569.3,3.74676979]
[1754303223228,4.39,3569.4,3569.3,3.74676979]
[1754303223929,4.39,3569.4,3569.0,0.14]
[1754303224123,4.39,3569.4,3569.1,0.4672]
[1754303224321,4.39,3569.4,3569.2,0.4672]
[1754303224827,0.14,3569.3,3569.2,0.4672]
[1754303225028,0.14,3569.3,3569.0,0.4779]
[1754303225197,0.14,3569.1,3568.9,0.4672]
[1754303225404,4.392,3569.0,3568.9,0.4672]
[1754303226216,4.392,3569.0,3568.9,0.9451]
[1754303227025,4.392,3569.0,3568.7,2.80211861]
[1754303227226,4.392,3569.0,3568.9,0.4672]
[1754303227742,4.392,3569.0,3568.5,2.80223349]
[1754303227743,4.532,3569.0,3568.5,2.80223349]
[1754303228039,4.532,3569.0,3568.6,0.4672]
[1754303228242,0.14,3568.7,3568.6,0.4672]
[1754303228443,4.528,3568.7,3568.6,0.4672]
[1754303229121,4.528,3568.7,3568.2,0.9451]
[1754303229508,0.14,3568.5,3568.0,2.94261431]
[1754303229708,4.387,3568.4,3568.1,0.9451]
[1754303229910,4.387,3568.4,3568.2,0.9451]
[1754303230266,4.387,3568.4,3568.0,3.14]
[1754303230410,4.387,3568.4,3568.1,0.9451]
[1754303230611,4.387,3568.4,3568.0,2.80265593]
[1754303230842,0.14,3568.3,3568.1,0.9451]
[1754303231041,0.14,3568.3,3568.2,0.4672]
[1754303231715,0.14,3568.3,3568.2,0.9451]
[1754303232210,0.14,3568.3,3568.2,0.4672]
[1754303232850,4.532,3568.3,3568.2,0.9451]
[1754303234143,4.532,3568.3,3567.7,0.14]
[1754303234324,4.532,3568.3,3567.9,0.4672]
[1754303234524,5.03131,3568.3,3567.7,0.14]
[1754303234725,4.89131,3568.3,3568.0,0.9451]
[1754303234920,4.89131,3568.3,3568.1,0.4672]
[1754303235121,0.14,3568.1,3567.7,0.4672]
[1754303235456,0.03503363,3568.0,3567.7,0.4672]
[1754303235750,0.14,3567.8,3567.3,0.9451]
[1754303236051,0.14,3567.8,3567.3,0.4672]
[1754303236215,0.6011,3567.8,3567.4,0.4672]
[1754303236751,0.96061,3567.8,3567.4,0.4672]
[1754303236952,0.14,3567.5,3567.4,0.4672]
[1754303237115,4.532,3567.5,3567.4,0.4672]
[1754303238026,4.392,3567.5,3567.4,3.74826196]
[1754303238443,4.392,3567.5,3567.4,0.4672]
[1754303238848,0.14,3567.6,3567.5,2.80308339]
[1754303239044,4.391,3567.6,3567.5,0.9451]
[1754303239244,4.391,3567.6,3567.2,0.14]
[1754303239245,4.391,3567.6,3567.1,3.88846986]
[1754303239463,4.391,3567.6,3567.2,3.4672]
[1754303239617,0.14,3567.3,3567.2,0.4672]
[1754303240551,0.6011,3567.3,3566.8,0.002]
[1754303240715,4.391,3567.2,3566.8,0.002]
[1754303240916,0.14,3567.0,3566.8,0.002]
[1754303241110,0.14,3567.0,3566.8,0.4692]
[1754303241316,0.14,3567.0,3566.8,0.002]
[1754303242043,0.14,3567.0,3566.8,0.4692]
[1754303242342,0.14,3567.0,3566.9,3.7486549]
[1754303242556,4.53,3567.0,3566.9,3.7486549]
[1754303242853,4.39,3567.0,3566.9,0.4672]
[1754303243059,4.39,3567.0,3566.9,3.7486549]
[1754303243263,4.39,3567.0,3566.9,0.9451]
[1754303243465,4.39,3567.0,3566.9,0.4672]
[1754303243655,4.53,3567.0,3566.9,0.9451]
[1754303243829,0.49613559,3567.8,3566.9,3.7486549]
[1754303244024,0.14,3567.2,3566.9,3.7486549]
[1754303244230,4.39,3567.1,3567.0,3.74854287]
[1754303244543,0.4611,3567.9,3567.1,2.80339771]
[1754303244745,0.14,3567.4,3567.2,2.80330736]
[1754303244943,4.389,3567.3,3567.2,2.80331912]
[1754303245143,0.14,3567.7,3567.2,0.71467245]
[1754303245470,6.734,3568.2,3567.9,2.8027125]
[1754303245663,4.389,3568.1,3568.0,0.9451]
[1754303246162,4.389,3568.1,3568.0,3.74779058]
[1754303246532,4.388,3568.1,3568.0,0.9451]
[1754303246953,4.388,3568.1,3568.0,3.74772141]
[1754303247151,0.14,3568.6,3568.0,1.0851]
[1754303247329,0.14,3568.6,3568.1,0.9409]
[1754303247666,4.387,3568.5,3568.3,2.80244163]
[1754303247870,4.387,3568.5,3568.3,0.4424]
[1754303248069,4.387,3568.5,3568.1,3.30108376]
[1754303248362,4.387,3568.5,3568.2,2.8025293]
[1754303248565,4.387,3568.5,3568.3,0.4424]
[1754303248869,4.387,3568.4,3568.3,3.74334707]
[1754303250170,0.14,3569.1,3568.9,2.80195015]
[1754303250331,6.876,3569.2,3569.0,0.9409]
[1754303250532,6.876,3569.2,3569.1,0.4424]
[1754303250870,11.26,3569.2,3568.8,3.24444206]
[1754303251070,11.26,3569.2,3569.1,2.80182679]
[1754303251270,11.26,3569.2,3569.0,2.80187439]
[1754303251478,11.26,3569.2,3569.1,0.4424]
[1754303252068,11.26,3569.2,3569.1,3.74272679]
[1754303252665,6.736,3569.2,3569.1,3.74272679]
[1754303252838,11.118,3569.2,3569.1,3.88272679]
[1754303253974,4.382,3569.2,3569.1,3.88272679]
[1754303254471,4.382,3569.2,3569.1,6.88272679]
[1754303254770,4.382,3569.2,3569.1,7.55119096]
[1754303254974,0.14,3570.1,3569.9,2.80118396]
[1754303255179,6.735,3570.5,3570.0,3.24352044]